[Event "V Open LLucmajor"]
[Site "LLucmajor"]
[Date "2016.05.12"]
[Round "5"]
[White "Minzer, Claudio Javier"]
[Black "Ladron De Guevara Pinto, Paolo"]
[Result "1-0"]
[ECO "E08"]
[WhiteElo "2432"]
[BlackElo "2344"]
[PlyCount "175"]
[EventDate "2016.??.??"]
[EventCountry "ESP"]
[TimeControl "5400+30"]
[WhiteClock "0:11:27"]
[BlackClock "0:36:30"]

1. Nf3 {[%emt 0:00:00]} d5 {[%emt 0:00:00]} 2. g3 {[%emt 0:00:25]} Nf6 {
[%emt 0:00:00]} 3. Bg2 {[%emt 0:00:06]} Nbd7 {[%emt 0:00:42]} 4. d4 {[%emt 0:
02:50]} e6 {[%emt 0:00:55]} 5. O-O {[%emt 0:00:39]} Be7 {[%emt 0:00:41]} 6. c4
{[%emt 0:01:16]} O-O {[%emt 0:00:25]} 7. Qc2 {[%emt 0:01:34]} dxc4 {[%emt 0:00:
19]} 8. Qxc4 {[%emt 0:01:34]} c5 {[%emt 0:02:38]} 9. Rd1 {[%emt 0:02:55]} cxd4
{[%emt 0:12:02]} 10. Nxd4 {[%emt 0:01:57]} a6 {[%emt 0:04:20]} 11. Nb3 {
[%emt 0:08:14]} Rb8 {[%emt 0:21:47]} 12. Qc2 {[%emt 0:04:33]} e5 {[%emt 0:01:
28]} 13. Bg5 {[%emt 0:10:49]} Qb6 {[%emt 0:03:47]} 14. Be3 {[%emt 0:12:11]} Qe6
{[%emt 0:00:24]} 15. Nc3 {[%emt 0:05:06]} b6 {[%emt 0:01:17]} 16. Rac1 {
[%emt 0:04:42]} Bb7 {[%emt 0:00:04]} 17. Bxb7 {[%emt 0:02:34]} Rxb7 {[%emt 0:
00:06]} 18. Qd3 {[%emt 0:00:10]} Nb8 {[%emt 0:01:17]} 19. Nd5 {[%emt 0:03:26]}
Nxd5 {[%emt 0:00:06]} 20. Qxd5 {[%emt 0:00:05]} Qxd5 {[%emt 0:00:03]} 21. Rxd5
{[%emt 0:00:06]} f6 {[%emt 0:00:01]} 22. Nd2 {[%emt 0:01:48]} Kf7 {[%emt 0:00:
08]} 23. Nc4 {[%emt 0:01:21]} Ke6 {[%emt 0:00:53]} 24. Rdd1 {[%emt 0:05:34]}
Nd7 {[%emt 0:02:39]} 25. Nxb6 {[%emt 0:01:13]} Nxb6 {[%emt 0:00:36]} 26. Rc6+ {
[%emt 0:00:04]} Kf5 {[%emt 0:01:54]} 27. Bxb6 {[%emt 0:01:09]} Rfb8 {[%emt 0:
00:03]} 28. Bc7 {[%emt 0:02:40]} Rc8 {[%emt 0:08:40]} 29. Rd7 {[%emt 0:00:04]}
Bf8 {[%emt 0:00:28]} 30. b3 {[%emt 0:00:09]} h5 {[%emt 0:01:07]} 31. h3 {
[%emt 0:02:16]} Ra8 {[%emt 0:00:05]} 32. Rd3 {[%emt 0:02:49]} a5 {[%emt 0:01:
56]} 33. Rf3+ {[%emt 0:00:27]} Ke4 {[%emt 0:02:53]} 34. Rc4+ {[%emt 0:01:49]}
Kd5 {[%emt 0:00:10]} 35. Rd3+ {[%emt 0:00:35]} Ke6 {[%emt 0:00:05]} 36. e4 {
[%emt 0:01:15]} Ra6 {[%emt 0:00:33]} 37. Rd5 {[%emt 0:01:20]} Bb4 {[%emt 0:01:
58]} 38. Kg2 {[%emt 0:01:13]} a4 {[%emt 0:03:02]} 39. bxa4 {[%emt 0:00:24]}
Rxa4 {[%emt 0:00:05]} 40. Bd6 {[%emt 0:00:33]} f5 {[%emt 0:00:05]} 41. Bxb4 {
[%emt 0:05:03]} Raxb4 {[%emt 0:02:50]} 42. Rc6+ {[%emt 0:00:06]} Kf7 {[%emt 0:
00:04]} 43. Rxe5 {[%emt 0:00:26]} fxe4 {[%emt 0:00:52]} 44. Rxh5 {[%emt 0:01:
16]} Re7 {[%emt 0:00:35]} 45. Rf5+ {[%emt 0:00:22]} Kg8 {[%emt 0:00:02]} 46.
Rc2 {[%emt 0:00:20]} Ra4 {[%emt 0:00:26]} 47. Re2 {[%emt 0:00:23]} g6 {[%emt 0:
00:18]} 48. Rb5 {[%emt 0:02:05]} Kg7 {[%emt 0:00:25]} 49. Rb3 {[%emt 0:00:26]}
Rd7 {[%emt 0:00:11]} 50. Reb2 {[%emt 0:00:46]} Rdd4 {[%emt 0:00:31]} 51. a3 {
[%emt 0:00:44]} Rd5 {[%emt 0:01:24]} 52. Rb4 {[%emt 0:00:15]} Rxa3 {[%emt 0:00:
05]} 53. Rxe4 {[%emt 0:00:06]} Rd7 {[%emt 0:00:03]} 54. h4 {[%emt 0:00:29]} Rf7
{[%emt 0:00:14]} 55. Rbe2 {[%emt 0:00:17]} Raa7 {[%emt 0:00:06]} 56. R2e3 {
[%emt 0:00:36]} Rab7 {[%emt 0:00:07]} 57. Rf3 {[%emt 0:00:26]} Rfd7 {[%emt 0:
00:16]} 58. Re6 {[%emt 0:00:15]} Kh7 {[%emt 0:00:07]} 59. Rf4 {[%emt 0:00:23]}
Rd5 {[%emt 0:00:16]} 60. Rg4 {[%emt 0:00:21]} Rg7 {[%emt 0:00:57]} 61. Rge4 {
[%emt 0:01:45]} Rdd7 {[%emt 0:00:52]} 62. R4e5 {[%emt 0:00:07]} Ra7 {[%emt 0:
00:36]} 63. f4 {[%emt 0:01:03]} Kg8 {[%emt 0:00:19]} 64. Kh3 {[%emt 0:00:29]}
Rab7 {[%emt 0:00:06]} 65. Rf6 {[%emt 0:00:43]} Ra7 {[%emt 0:00:24]} 66. Rg5 {
[%emt 0:01:51]} Kh7 {[%emt 0:00:08]} 67. h5 {[%emt 0:00:05]} gxh5 {[%emt 0:01:
30]} 68. Rxh5+ {[%emt 0:00:06]} Kg8 {[%emt 0:00:04]} 69. Rff5 {[%emt 0:00:12]}
Rab7 {[%emt 0:00:10]} 70. Rfg5 {[%emt 0:00:06]} Rb6 {[%emt 0:00:07]} 71. Kh4 {
[%emt 0:01:15]} Ra6 {[%emt 0:00:21]} 72. f5 {[%emt 0:00:32]} Ra1 {[%emt 0:00:
32]} 73. Rxg7+ {[%emt 0:00:11]} Kxg7 {[%emt 0:00:05]} 74. Kg5 {[%emt 0:00:04]}
Ra6 {[%emt 0:00:16]} 75. g4 {[%emt 0:00:05]} Rb6 {[%emt 0:00:06]} 76. Rh1 {
[%emt 0:00:08]} Ra6 {[%emt 0:00:04]} 77. Rb1 {[%emt 0:01:00]} Ra7 {[%emt 0:00:
07]} 78. Rb6 {[%emt 0:00:10]} Kf7 {[%emt 0:00:05]} 79. Rb4 {[%emt 0:02:27]} Kg7
{[%emt 0:00:07]} 80. Kf4 {[%emt 0:00:08]} Ra1 {[%emt 0:00:06]} 81. Rb7+ {
[%emt 0:00:18]} Kg8 {[%emt 0:00:04]} 82. Kg5 {[%emt 0:00:58]} Ra6 {[%emt 0:00:
15]} 83. f6 {[%emt 0:00:56]} Ra4 {[%emt 0:00:22]} 84. Kf5 {[%emt 0:00:17]} Rc4
{[%emt 0:00:14]} 85. g5 {[%emt 0:00:12]} Ra4 {[%emt 0:00:12]} 86. Kg6 {[%emt 0:
00:11]} Ra8 {[%emt 0:00:05]} 87. Rg7+ {[%emt 0:00:07]} Kf8 {[%emt 0:00:12]} 88.
Rh7 {[%emt 0:00:07]} 1-0

[Event "V Open LLucmajor"]
[Site "LLucmajor"]
[Date "2016.05.12"]
[Round "5"]
[White "Movsziszian, Karen"]
[Black "Fedorchuk, Sergey A"]
[Result "1-0"]
[WhiteElo "2468"]
[BlackElo "2626"]
[PlyCount "99"]
[EventDate "2016.??.??"]
[EventCountry "ESP"]
[TimeControl "5400+30"]
[WhiteClock "0:31:17"]
[BlackClock "0:01:19"]

1. d3 {[%emt 0:00:19]} b6 {[%emt 0:07:27]} 2. g3 {[%emt 0:00:37]} Bb7 {[%emt 0:
00:17]} 3. e4 {[%emt 0:00:02]} e6 {[%emt 0:09:06]} 4. Bg2 {[%emt 0:00:05]} c5 {
[%emt 0:00:23]} 5. f4 {[%emt 0:01:05]} d5 {[%emt 0:01:35]} 6. Nd2 {[%emt 0:00:
30]} Qc7 {[%emt 0:06:38]} 7. Qe2 {[%emt 0:04:39]} Nc6 {[%emt 0:05:15]} 8. c3 {
[%emt 0:00:03]} d4 {[%emt 0:07:26]} 9. c4 {[%emt 0:00:10]} Nb4 {[%emt 0:05:45]}
10. Ndf3 {[%emt 0:00:54]} a6 {[%emt 0:00:31]} 11. Nh3 {[%emt 0:01:14]} b5 {
[%emt 0:02:06]} 12. b3 {[%emt 0:00:18]} Nf6 {[%emt 0:00:58]} 13. Nf2 {[%emt 0:
00:23]} Be7 {[%emt 0:01:53]} 14. O-O {[%emt 0:01:05]} Nd7 {[%emt 0:01:06]} 15.
g4 {[%emt 0:02:04]} e5 {[%emt 0:04:44]} 16. fxe5 {[%emt 0:12:34]} Nxe5 {
[%emt 0:01:16]} 17. Nxe5 {[%emt 0:01:36]} Qxe5 {[%emt 0:00:05]} 18. g5 {
[%emt 0:04:19]} Bc8 {[%emt 0:11:59]} 19. Nh3 {[%emt 0:00:16]} O-O {[%emt 0:01:
26]} 20. Bf4 {[%emt 0:07:54]} Qe6 {[%emt 0:00:06]} 21. Nf2 {[%emt 0:00:56]} Ra7
{[%emt 0:03:21]} 22. a3 {[%emt 0:03:55]} Nc6 {[%emt 0:00:37]} 23. e5 {[%emt 0:
00:37]} Nd8 {[%emt 0:03:35]} 24. h4 {[%emt 0:01:13]} Bb7 {[%emt 0:01:50]} 25.
Bh3 {[%emt 0:04:42]} Qc6 {[%emt 0:03:11]} 26. Kh2 {[%emt 0:00:10]} Ne6 {
[%emt 0:00:09]} 27. Bg3 {[%emt 0:01:52]} a5 {[%emt 0:10:13]} 28. a4 {[%emt 0:
03:50]} bxc4 {[%emt 0:00:07]} 29. bxc4 {[%emt 0:00:01]} Ra6 {[%emt 0:00:06]}
30. Ne4 {[%emt 0:00:44]} Rb6 {[%emt 0:00:31]} 31. Bg2 {[%emt 0:05:05]} Qd7 {
[%emt 0:02:08]} 32. Rf2 {[%emt 0:00:08]} Rb4 {[%emt 0:01:54]} 33. Qg4 {[%emt 0:
02:10]} Rxa4 {[%emt 0:04:01]} 34. Raf1 {[%emt 0:01:29]} Ra3 {[%emt 0:01:43]}
35. h5 {[%emt 0:04:44]} Rxd3 {[%emt 0:03:19]} 36. g6 {[%emt 0:00:02]} fxg6 {
[%emt 0:00:15]} 37. hxg6 {[%emt 0:00:48]} hxg6 {[%emt 0:00:28]} 38. Qxg6 {
[%emt 0:00:55]} Rxg3 {[%emt 0:00:50]} 39. Qxg3 {[%emt 0:01:00]} d3 {[%emt 0:00:
34]} 40. Rxf8+ {[%emt 0:03:11]} Nxf8 {[%emt 0:00:02]} 41. Nf6+ {[%emt 0:02:09]}
Bxf6 {[%emt 0:00:02]} 42. exf6 {[%emt 0:00:04]} Bxg2 {[%emt 0:01:23]} 43. f7+ {
[%emt 0:00:53]} Kh7 {[%emt 0:00:01]} 44. Kxg2 {[%emt 0:00:18]} Qc6+ {[%emt 0:
00:41]} 45. Qf3 {[%emt 0:01:07]} Qg6+ {[%emt 0:00:55]} 46. Kf2 {[%emt 0:00:05]}
Qf6 {[%emt 0:00:11]} 47. Qxf6 {[%emt 0:01:03]} gxf6 {[%emt 0:00:02]} 48. Rg1 {
[%emt 0:00:06]} a4 {[%emt 0:00:28]} 49. Rg8 {[%emt 0:00:14]} d2 {[%emt 0:00:32]
} 50. Ke2 {[%emt 0:00:05]} 1-0

[Event "V Open LLucmajor"]
[Site "LLucmajor"]
[Date "2016.05.12"]
[Round "5"]
[White "Roeder, Matthias"]
[Black "Rasmussen, Allan Stig"]
[Result "1/2-1/2"]
[ECO "A04"]
[WhiteElo "2369"]
[BlackElo "2495"]
[PlyCount "24"]
[EventDate "2016.??.??"]
[EventCountry "ESP"]
[TimeControl "5400+30"]
[WhiteClock "1:09:03"]
[BlackClock "0:29:43"]

1. Nf3 {[%emt 0:00:00]} c5 {[%emt 0:00:00]} 2. c4 {[%emt 0:00:06]} Nc6 {
[%emt 0:00:00]} 3. d4 {[%emt 0:00:17]} cxd4 {[%emt 0:00:00]} 4. Nxd4 {[%emt 0:
00:06]} Nf6 {[%emt 0:00:04]} 5. g3 {[%emt 0:04:55]} e6 {[%emt 0:02:35]} 6. Bg2
{[%emt 0:01:46]} Qb6 {[%emt 0:11:16]} 7. e3 {[%emt 0:05:12]} Ne5 {[%emt 0:06:
47]} 8. b3 {[%emt 0:04:17]} Bb4+ {[%emt 0:12:03]} 9. Bd2 {[%emt 0:01:08]} d5 {
[%emt 0:00:21]} 10. O-O {[%emt 0:02:11]} O-O {[%emt 0:21:44]} 11. Bxb4 {
[%emt 0:06:48]} Qxb4 {[%emt 0:00:04]} 12. Qd2 {[%emt 0:00:11]} Qxd2 {[%emt 0:
11:23]} 1/2-1/2

[Event "V Open LLucmajor"]
[Site "LLucmajor"]
[Date "2016.05.12"]
[Round "5"]
[White "Trent, Lawrence"]
[Black "Pap, Misa"]
[Result "0-1"]
[ECO "A80"]
[WhiteElo "2450"]
[BlackElo "2484"]
[PlyCount "61"]
[EventDate "2016.??.??"]
[EventCountry "ESP"]
[TimeControl "5400+30"]
[WhiteClock "0:01:29"]
[BlackClock "0:03:11"]

1. d4 {[%emt 0:00:17]} f5 {[%emt 0:00:00]} 2. Nc3 {[%emt 0:01:44]} Nf6 {
[%emt 0:00:01]} 3. Bg5 {[%emt 0:00:44]} d5 {[%emt 0:00:07]} 4. e3 {[%emt 0:00:
49]} e6 {[%emt 0:00:20]} 5. Nf3 {[%emt 0:01:08]} Be7 {[%emt 0:00:10]} 6. Bd3 {
[%emt 0:00:19]} O-O {[%emt 0:00:25]} 7. O-O {[%emt 0:00:08]} h6 {[%emt 0:01:25]
} 8. Bf4 {[%emt 0:11:00]} Nbd7 {[%emt 0:22:24]} 9. Nb5 {[%emt 0:13:43]} Ne8 {
[%emt 0:00:29]} 10. h3 {[%emt 0:08:22]} a6 {[%emt 0:03:21]} 11. Nc3 {[%emt 0:
00:33]} c5 {[%emt 0:02:46]} 12. dxc5 {[%emt 0:00:17]} Bxc5 {[%emt 0:01:37]} 13.
Ne2 {[%emt 0:06:54]} Qf6 {[%emt 0:01:48]} 14. Bh2 {[%emt 0:04:34]} Kh8 {
[%emt 0:22:21]} 15. Nf4 {[%emt 0:13:28]} Bd6 {[%emt 0:09:37]} 16. Be2 {[%emt 0:
07:37]} b5 {[%emt 0:06:39]} 17. a4 {[%emt 0:07:05]} b4 {[%emt 0:00:14]} 18. h4
{[%emt 0:02:57]} Bb7 {[%emt 0:05:59]} 19. h5 {[%emt 0:00:10]} Bxf4 {[%emt 0:00:
16]} 20. exf4 {[%emt 0:01:50]} Rc8 {[%emt 0:01:11]} 21. Ne5 {[%emt 0:06:14]}
Nxe5 {[%emt 0:00:23]} 22. fxe5 {[%emt 0:00:02]} Qg5 {[%emt 0:04:30]} 23. f4 {
[%emt 0:04:19]} Qe7 {[%emt 0:00:04]} 24. Qd4 {[%emt 0:02:56]} a5 {[%emt 0:00:
50]} 25. Bd3 {[%emt 0:01:53]} Nc7 {[%emt 0:06:31]} 26. Qb6 {[%emt 0:01:00]} Ra8
{[%emt 0:00:37]} 27. Bg3 {[%emt 0:02:03]} Ba6 {[%emt 0:00:52]} 28. Bf2 {
[%emt 0:00:16]} Qf7 {[%emt 0:03:33]} 29. Bc5 {[%emt 0:00:51]} Rfb8 {[%emt 0:03:
00]} 30. Qc6 {[%emt 0:00:18]} Bxd3 {[%emt 0:00:19]} 31. Qd6 0-1

[Event "V Open LLucmajor"]
[Site "LLucmajor"]
[Date "2016.05.11"]
[Round "4"]
[White "Abergel, Thal"]
[Black "Edouard, Romain"]
[Result "0-1"]
[ECO "C15"]
[WhiteElo "2450"]
[BlackElo "2641"]
[PlyCount "68"]
[EventDate "2016.??.??"]
[EventCountry "ESP"]
[TimeControl "5400+30"]
[WhiteClock "0:04:40"]
[BlackClock "0:39:48"]

1. e4 {[%emt 0:00:00]} e6 {[%emt 0:02:44]} 2. d4 {[%emt 0:00:00]} d5 {[%emt 0:
00:06]} 3. Nc3 {[%emt 0:00:00]} Bb4 {[%emt 0:00:18]} 4. a3 {[%emt 0:00:00]}
Bxc3+ {[%emt 0:00:07]} 5. bxc3 {[%emt 0:00:00]} dxe4 {[%emt 0:00:09]} 6. Qg4 {
[%emt 0:00:03]} Nf6 {[%emt 0:00:12]} 7. Qxg7 {[%emt 0:00:05]} Rg8 {[%emt 0:00:
04]} 8. Qh6 {[%emt 0:00:06]} Bd7 {[%emt 0:00:05]} 9. Ne2 {[%emt 0:03:48]} Ba4 {
[%emt 0:00:24]} 10. Qd2 {[%emt 0:02:38]} c5 {[%emt 0:01:33]} 11. dxc5 {[%emt 0:
04:56]} Qxd2+ {[%emt 0:05:30]} 12. Bxd2 {[%emt 0:00:51]} Nbd7 {[%emt 0:02:32]}
13. Nd4 {[%emt 0:07:17]} Nxc5 {[%emt 0:00:10]} 14. Bb5+ {[%emt 0:04:13]} Bxb5 {
[%emt 0:03:40]} 15. Nxb5 {[%emt 0:03:36]} Ke7 {[%emt 0:00:18]} 16. O-O {
[%emt 0:05:58]} Nfd7 {[%emt 0:04:19]} 17. Rfd1 {[%emt 0:11:24]} a6 {[%emt 0:07:
56]} 18. Nd4 {[%emt 0:00:01]} Ne5 {[%emt 0:01:01]} 19. Bf4 {[%emt 0:20:43]} Nc4
{[%emt 0:00:58]} 20. Nb3 {[%emt 0:12:28]} Na4 {[%emt 0:02:04]} 21. Nd2 {
[%emt 0:05:24]} Nxd2 {[%emt 0:03:15]} 22. Bxd2 {[%emt 0:00:26]} Rac8 {[%emt 0:
03:48]} 23. c4 {[%emt 0:08:07]} Rxc4 {[%emt 0:00:46]} 24. Bb4+ {[%emt 0:00:30]}
Kf6 {[%emt 0:00:17]} 25. Rd7 {[%emt 0:00:03]} b5 {[%emt 0:02:13]} 26. Re1 {
[%emt 0:01:00]} Rxc2 {[%emt 0:11:11]} 27. Rxe4 {[%emt 0:03:04]} Nc5 {[%emt 0:
09:55]} 28. Rc7 {[%emt 0:00:07]} Rg4 {[%emt 0:00:08]} 29. Re1 {[%emt 0:01:45]}
Rgc4 {[%emt 0:00:03]} 30. Bxc5 {[%emt 0:02:48]} Rxc5 {[%emt 0:00:03]} 31. Ra7 {
[%emt 0:00:08]} Re2 {[%emt 0:00:53]} 32. Kf1 {[%emt 0:00:02]} Ra2 {[%emt 0:00:
09]} 33. Rxa6 {[%emt 0:00:45]} Rcc2 {[%emt 0:00:06]} 34. Kg1 {[%emt 0:00:04]}
Rxf2 {[%emt 0:00:15]} 0-1

[Event "V Open LLucmajor"]
[Site "LLucmajor"]
[Date "2016.05.11"]
[Round "4"]
[White "Fedorchuk, Sergey A"]
[Black "Starostits, Ilmars"]
[Result "1-0"]
[ECO "B12"]
[WhiteElo "2626"]
[BlackElo "2452"]
[PlyCount "71"]
[EventDate "2016.??.??"]
[EventCountry "ESP"]
[TimeControl "5400+30"]
[WhiteClock "0:05:28"]
[BlackClock "0:25:46"]

1. e4 {[%emt 0:04:05]} c6 {[%emt 0:00:00]} 2. d4 {[%emt 0:01:16]} d5 {[%emt 0:
00:00]} 3. e5 {[%emt 0:00:49]} Bf5 {[%emt 0:00:02]} 4. Nd2 {[%emt 0:00:52]} e6
{[%emt 0:00:51]} 5. Nb3 {[%emt 0:00:18]} Nd7 {[%emt 0:00:53]} 6. Nf3 {[%emt 0:
01:39]} Bg6 {[%emt 0:03:11]} 7. Be2 {[%emt 0:02:17]} Ne7 {[%emt 0:03:48]} 8.
O-O {[%emt 0:01:50]} Nf5 {[%emt 0:00:41]} 9. a4 {[%emt 0:02:44]} h5 {[%emt 0:
05:03]} 10. a5 {[%emt 0:02:25]} h4 {[%emt 0:00:16]} 11. Bf4 {[%emt 0:04:12]}
Be7 {[%emt 0:01:14]} 12. c3 {[%emt 0:02:44]} Bh5 {[%emt 0:02:10]} 13. Ne1 {
[%emt 0:15:43]} Bxe2 {[%emt 0:03:57]} 14. Qxe2 {[%emt 0:00:06]} c5 {[%emt 0:01:
04]} 15. dxc5 {[%emt 0:09:10]} a6 {[%emt 0:03:20]} 16. Nd3 {[%emt 0:07:45]} g6
{[%emt 0:00:55]} 17. Rfc1 {[%emt 0:03:23]} Rc8 {[%emt 0:14:11]} 18. c4 {
[%emt 0:00:27]} d4 {[%emt 0:00:09]} 19. Qe4 {[%emt 0:04:13]} Qc7 {[%emt 0:02:
06]} 20. Nxd4 {[%emt 0:06:13]} h3 {[%emt 0:06:00]} 21. b4 {[%emt 0:02:33]} Nxd4
{[%emt 0:05:58]} 22. Qxd4 {[%emt 0:00:08]} Qc6 {[%emt 0:00:04]} 23. gxh3 {
[%emt 0:01:16]} Rxh3 {[%emt 0:04:25]} 24. Bg3 {[%emt 0:01:34]} g5 {[%emt 0:07:
36]} 25. Qg4 {[%emt 0:03:32]} Rh6 {[%emt 0:01:53]} 26. Re1 {[%emt 0:06:47]} Rd8
{[%emt 0:00:52]} 27. Rad1 {[%emt 0:02:02]} Nb8 {[%emt 0:01:52]} 28. Nb2 {
[%emt 0:00:17]} Rxd1 {[%emt 0:01:02]} 29. Rxd1 {[%emt 0:02:00]} Qc8 {[%emt 0:
00:31]} 30. Na4 {[%emt 0:00:51]} Kf8 {[%emt 0:03:19]} 31. Nb6 {[%emt 0:01:36]}
Qe8 {[%emt 0:00:14]} 32. Qe4 {[%emt 0:01:47]} Nc6 {[%emt 0:00:37]} 33. Rd7 {
[%emt 0:01:25]} Nxb4 {[%emt 0:00:47]} 34. Qxb7 {[%emt 0:00:50]} Bxc5 {[%emt 0:
00:41]} 35. Rc7 {[%emt 0:01:02]} Bxb6 {[%emt 0:02:02]} 36. axb6 {[%emt 0:02:41]
} 1-0

[Event "V Open LLucmajor"]
[Site "LLucmajor"]
[Date "2016.05.11"]
[Round "4"]
[White "Galiana Moll, Ramon Aron"]
[Black "Galiana Salom, Juan Ramon"]
[Result "0-1"]
[ECO "C02"]
[WhiteElo "1995"]
[BlackElo "2246"]
[PlyCount "80"]
[EventDate "2016.??.??"]
[EventCountry "ESP"]
[TimeControl "5400+30"]

1. e4 e6 2. d4 d5 3. e5 c5 4. Nf3 Nc6 5. Bd3 Bd7 6. a3 Qb6 7. dxc5 Bxc5 8. O-O
Nh6 9. Bxh6 gxh6 10. Nc3 Be7 11. Qd2 O-O-O 12. Qxh6 Rdg8 13. b4 Nd4 14. Qe3
Nxf3+ 15. Qxf3 Rg7 16. Ne2 Rhg8 17. Ng3 Kb8 18. Rac1 Qd4 19. c4 h5 20. Kh1 h4
21. Ne2 Qxe5 22. Qf4 Qxf4 23. Nxf4 Bg5 24. Nh5 Bxc1 25. Rxc1 dxc4 26. Be4 Rg5
27. Nf6 Rd8 28. f4 Rg7 29. Rxc4 Bc6 30. h3 Bxe4 31. Nxe4 a6 32. Kg1 Rd1+ 33.
Kf2 Ra1 34. Nd6 Ra2+ 35. Kf1 Rgxg2 36. Rc8+ Ka7 37. Rf8 Rgb2 38. Nc8+ Kb8 39.
Ne7+ Kc7 40. Rc8+ Kd7 0-1

[Event "V Open LLucmajor"]
[Site "LLucmajor"]
[Date "2016.05.11"]
[Round "4"]
[White "Naumkin, Igor"]
[Black "Granda Zuniga, Julio E"]
[Result "0-1"]
[ECO "E92"]
[WhiteElo "2431"]
[BlackElo "2686"]
[PlyCount "92"]
[EventDate "2016.??.??"]
[EventCountry "ESP"]
[TimeControl "5400+30"]
[WhiteClock "0:01:17"]
[BlackClock "0:06:51"]

1. d4 {[%emt 0:07:00]} Nf6 {[%emt 0:00:00]} 2. c4 {[%emt 0:00:16]} g6 {[%emt 0:
00:02]} 3. Nc3 {[%emt 0:00:12]} Bg7 {[%emt 0:00:04]} 4. e4 {[%emt 0:00:07]} d6
{[%emt 0:00:03]} 5. Nf3 {[%emt 0:00:06]} O-O {[%emt 0:00:05]} 6. Be2 {[%emt 0:
00:05]} e5 {[%emt 0:00:05]} 7. d5 {[%emt 0:00:10]} a5 {[%emt 0:00:15]} 8. Bg5 {
[%emt 0:00:08]} h6 {[%emt 0:00:14]} 9. Bh4 {[%emt 0:00:05]} Na6 {[%emt 0:00:09]
} 10. O-O {[%emt 0:00:20]} Qe8 {[%emt 0:02:08]} 11. Nd2 {[%emt 0:01:01]} Bd7 {
[%emt 0:00:58]} 12. b3 {[%emt 0:01:14]} Nh7 {[%emt 0:00:09]} 13. a3 {[%emt 0:
00:41]} Kh8 {[%emt 0:05:40]} 14. Rb1 {[%emt 0:05:14]} Rg8 {[%emt 0:00:32]} 15.
Kh1 {[%emt 0:04:05]} f5 {[%emt 0:01:11]} 16. exf5 {[%emt 0:00:53]} gxf5 {
[%emt 0:00:11]} 17. Bh5 {[%emt 0:06:39]} Qf8 {[%emt 0:01:32]} 18. f4 {[%emt 0:
00:11]} e4 {[%emt 0:00:30]} 19. Qc2 {[%emt 0:04:47]} Bd4 {[%emt 0:07:12]} 20.
Ne2 {[%emt 0:11:40]} Qg7 {[%emt 0:03:31]} 21. g4 {[%emt 0:07:56]} Nf6 {[%emt 0:
17:08]} 22. Nxd4 {[%emt 0:16:29]} Nxh5 {[%emt 0:00:26]} 23. Rg1 {[%emt 0:08:42]
} Qxd4 {[%emt 0:01:49]} 24. gxh5 {[%emt 0:00:07]} Nc5 {[%emt 0:04:53]} 25. Rg6
{[%emt 0:02:12]} Rxg6 {[%emt 0:01:12]} 26. hxg6 {[%emt 0:00:04]} Kg8 {[%emt 0:
14:54]} 27. Nf1 {[%emt 0:02:28]} e3 {[%emt 0:01:48]} 28. Ng3 {[%emt 0:04:17]}
Qxf4 {[%emt 0:00:36]} 29. Bf6 {[%emt 0:00:50]} Re8 {[%emt 0:00:31]} 30. Ba1 {
[%emt 0:07:35]} Ne4 {[%emt 0:13:38]} 31. Qb2 {[%emt 0:04:39]} Nxg3+ {[%emt 0:
13:31]} 32. hxg3 {[%emt 0:00:05]} Qf3+ {[%emt 0:00:05]} 33. Kh2 {[%emt 0:01:47]
} Qh5+ {[%emt 0:02:55]} 34. Kg2 {[%emt 0:00:07]} Qxg6 {[%emt 0:00:03]} 35. Qf6
{[%emt 0:02:31]} Qxf6 {[%emt 0:02:33]} 36. Bxf6 {[%emt 0:00:03]} f4 {[%emt 0:
01:57]} 37. gxf4 {[%emt 0:00:22]} h5 {[%emt 0:00:17]} 38. Re1 {[%emt 0:01:32]}
Kf7 {[%emt 0:01:04]} 39. Bd4 {[%emt 0:00:25]} e2 {[%emt 0:00:05]} 40. Kf2 {
[%emt 0:00:40]} Bg4 {[%emt 0:00:01]} 41. f5 {[%emt 0:01:10]} Re4 {[%emt 0:00:
15]} 42. Bb2 {[%emt 0:00:21]} h4 {[%emt 0:00:34]} 43. f6 {[%emt 0:00:16]} Rf4+
{[%emt 0:00:21]} 44. Kg1 {[%emt 0:00:28]} b6 {[%emt 0:00:33]} 45. Kh2 {[%emt 0:
01:33]} Rf1 {[%emt 0:00:21]} 46. Bc3 {[%emt 0:00:10]} Rf3 {[%emt 0:00:08]} 0-1

[Event "V Open LLucmajor"]
[Site "LLucmajor"]
[Date "2016.05.11"]
[Round "4"]
[White "Pap, Misa"]
[Black "Roeder, Matthias"]
[Result "1/2-1/2"]
[ECO "B22"]
[WhiteElo "2484"]
[BlackElo "2369"]
[PlyCount "48"]
[EventDate "2016.??.??"]
[EventCountry "ESP"]
[TimeControl "5400+30"]
[WhiteClock "0:10:01"]
[BlackClock "0:22:39"]

1. e4 {[%emt 0:00:00]} c5 {[%emt 0:00:00]} 2. c3 {[%emt 0:00:00]} Nf6 {[%emt 0:
00:00]} 3. e5 {[%emt 0:00:00]} Nd5 {[%emt 0:00:09]} 4. Nf3 {[%emt 0:00:00]} Nc6
{[%emt 0:00:31]} 5. Bc4 {[%emt 0:00:00]} Nb6 {[%emt 0:07:00]} 6. Bb3 {[%emt 0:
00:04]} c4 {[%emt 0:02:10]} 7. Bc2 {[%emt 0:00:30]} d5 {[%emt 0:05:47]} 8. exd6
{[%emt 0:07:28]} e5 {[%emt 0:07:32]} 9. O-O {[%emt 0:02:37]} Qxd6 {[%emt 0:06:
49]} 10. b3 {[%emt 0:07:27]} Bg4 {[%emt 0:03:14]} 11. Na3 {[%emt 0:01:45]} cxb3
{[%emt 0:03:13]} 12. axb3 {[%emt 0:13:28]} Be7 {[%emt 0:08:24]} 13. d4 {
[%emt 0:23:02]} O-O {[%emt 0:18:53]} 14. dxe5 Qc5 {[%emt 0:00:30]} 15. Qd3 {
[%emt 0:09:51]} g6 {[%emt 0:00:24]} 16. Be3 {[%emt 0:01:22]} Qd5 17. c4 {
[%emt 0:11:37]} Qxd3 {[%emt 0:05:11]} 18. Bxd3 {[%emt 0:00:05]} Bxf3 {[%emt 0:
00:11]} 19. gxf3 {[%emt 0:00:04]} Nxe5 {[%emt 0:00:06]} 20. Be4 {[%emt 0:00:20]
} f5 21. Bxb7 {[%emt 0:03:05]} Rab8 {[%emt 0:00:14]} 22. Ba6 {[%emt 0:02:52]}
f4 {[%emt 0:01:09]} 23. Bc1 {[%emt 0:05:52]} Nxf3+ {[%emt 0:07:24]} 24. Kg2 Nd4
1/2-1/2

[Event "V Open LLucmajor"]
[Site "LLucmajor"]
[Date "2016.05.11"]
[Round "4"]
[White "Paunovic, Dragan"]
[Black "Castellanos Rodriguez, Renier"]
[Result "1/2-1/2"]
[ECO "A05"]
[WhiteElo "2439"]
[BlackElo "2481"]
[PlyCount "48"]
[EventDate "2016.??.??"]
[EventCountry "ESP"]
[TimeControl "5400+30"]
[WhiteClock "0:48:03"]
[BlackClock "0:54:30"]

1. Nf3 {[%emt 0:00:00]} Nf6 {[%emt 0:00:00]} 2. g3 {[%emt 0:00:09]} g6 {
[%emt 0:00:27]} 3. Bg2 {[%emt 0:00:10]} Bg7 {[%emt 0:00:06]} 4. c4 {[%emt 0:00:
27]} O-O {[%emt 0:00:16]} 5. Nc3 {[%emt 0:00:56]} d6 {[%emt 0:00:35]} 6. O-O {
[%emt 0:00:55]} e5 {[%emt 0:00:28]} 7. d4 {[%emt 0:04:48]} Nc6 {[%emt 0:01:27]}
8. d5 {[%emt 0:01:45]} Nb8 {[%emt 0:00:09]} 9. e4 {[%emt 0:01:57]} a5 {[%emt 0:
03:07]} 10. Ne1 {[%emt 0:01:13]} Na6 {[%emt 0:00:29]} 11. Nd3 {[%emt 0:01:53]}
Nd7 {[%emt 0:01:08]} 12. Be3 {[%emt 0:23:06]} f5 {[%emt 0:02:57]} 13. a3 {
[%emt 0:04:17]} Ndc5 {[%emt 0:14:42]} 14. f3 {[%emt 0:01:13]} Bd7 {[%emt 0:05:
13]} 15. Nxc5 {[%emt 0:07:04]} Nxc5 {[%emt 0:00:22]} 16. b4 {[%emt 0:01:50]}
axb4 {[%emt 0:02:11]} 17. axb4 {[%emt 0:00:06]} Rxa1 {[%emt 0:01:04]} 18. Qxa1
{[%emt 0:00:06]} Nb3 {[%emt 0:00:43]} 19. Qb2 {[%emt 0:00:08]} Nd4 {[%emt 0:00:
09]} 20. Ne2 {[%emt 0:00:14]} fxe4 {[%emt 0:10:16]} 21. Nxd4 {[%emt 0:01:23]}
exd4 {[%emt 0:00:13]} 22. Bxd4 {[%emt 0:00:06]} Bxd4+ {[%emt 0:00:36]} 23. Qxd4
{[%emt 0:00:03]} exf3 {[%emt 0:00:20]} 24. Rxf3 {[%emt 0:00:08]} Rxf3 {[%emt 0:
00:32]} 1/2-1/2